bitfinex-derivatives/quotes_BTCF0:USTF0_20250211
["timestamp","ask_amount","ask_price","bid_price","bid_amount"]
[1739301742436,0.20614985,95214.0,95212.0,0.0637]
[1739301743238,0.00015754,95217.0,95212.0,0.0637]
[1739301743630,0.004,95214.0,95212.0,0.0637]
[1739301743836,0.004,95214.0,95201.0,0.3608]
[1739301744236,0.2100461,95213.0,95201.0,0.3608]
[1739301744433,0.2100566,95209.0,95201.0,0.3608]
[1739301744642,0.003,95214.0,95201.0,0.3608]
[1739301744844,0.2100643,95205.0,95201.0,0.3608]
[1739301746745,0.2120643,95205.0,95201.0,0.3608]
[1739301747249,0.2140643,95205.0,95201.0,0.3608]
[1739301747747,0.004,95205.0,95201.0,0.3608]
[1739301747947,0.004,95205.0,95203.0,0.21022424]
[1739301748257,0.004,95205.0,95204.0,1.5678]
[1739301749348,0.005,95205.0,95204.0,1.5678]
[1739301749847,0.00015754,95217.0,95214.0,0.210042]
[1739301750146,0.00015754,95217.0,95216.0,0.3608]
[1739301750851,0.00515754,95217.0,95216.0,0.3608]
[1739301751051,0.210013,95228.0,95217.0,0.2100361]
[1739301751237,0.210013,95228.0,95216.0,0.3608]
[1739301751238,0.210013,95228.0,95218.0,1.7542649]
[1739301751437,0.210013,95228.0,95222.0,0.2100243]
[1739301751850,0.2100152,95227.0,95222.0,0.2100243]
[1739301752442,0.2100188,95226.0,95218.0,1.62713245]
[1739301752644,0.2100225,95224.0,95218.0,1.62713245]
[1739301752842,0.00015754,95234.0,95222.0,0.001]
[1739301752843,0.014,95228.0,95222.0,0.001]
[1739301753039,0.2100238,95223.0,95222.0,0.001]
[1739301754551,0.209026,95222.0,95221.0,0.3608]
[1739301755442,0.208026,95222.0,95221.0,0.3608]
[1739301755841,0.276326,95222.0,95221.0,0.3608]
[1739301756246,0.290326,95222.0,95221.0,0.3618]
[1739301756442,0.296326,95222.0,95221.0,0.3628]
[1739301757554,0.296326,95222.0,95221.0,0.002]
[1739301758445,0.228026,95222.0,95221.0,0.002]
[1739301765654,0.02,95222.0,95221.0,0.002]
[1739301766254,0.02,95222.0,95221.0,1.502]
[1739301766859,0.2100091,95230.0,95226.0,0.2100162]
[1739301767162,0.42656001,95235.0,95224.0,0.0752]
[1739301767464,0.2100128,95228.0,95224.0,0.0752]
[1739301768058,0.2100128,95228.0,95226.0,0.001]
[1739301768864,0.2100128,95228.0,95224.0,0.0752]
[1739301768865,0.2240128,95228.0,95224.0,0.0762]
[1739301769062,0.2100194,95225.0,95224.0,0.0762]
[1739301769262,0.2100194,95225.0,95224.0,0.001]
[1739301769569,0.014,95228.0,95220.0,0.3608]
[1739301769570,0.2100282,95221.0,95220.0,0.3608]
[1739301770153,0.022,95228.0,95218.0,0.18794092]
[1739301770154,0.2100326,95219.0,95218.0,0.18794092]
[1739301770367,0.2090326,95219.0,95218.0,0.18794092]
[1739301771168,0.003,95221.0,95218.0,0.18794092]
[1739301771465,0.2100327,95219.0,95218.0,0.18794092]
[1739301771866,0.2200327,95219.0,95218.0,0.18894092]
[1739301772060,0.01,95219.0,95218.0,0.18894092]
[1739301772266,0.01,95219.0,95218.0,0.39897582]
[1739301772466,0.015,95219.0,95218.0,0.2110349]
[1739301772666,0.015,95219.0,95218.0,1.72148989]
[1739301773469,0.15469642,95230.0,95218.0,1.51145499]
[1739301773673,0.15469642,95230.0,95225.0,0.2100174]
[1739301773863,0.15469642,95230.0,95226.0,0.07512]
[1739301774064,0.15469642,95230.0,95229.0,0.3608]
[1739301774263,0.15469642,95230.0,95229.0,0.5708106]
[1739301774463,0.15469642,95230.0,95229.0,0.2100106]
[1739301774670,0.16469642,95230.0,95229.0,0.2100106]
[1739301774870,0.16469642,95230.0,95229.0,0.5708106]
[1739301775372,0.16969642,95230.0,95229.0,0.5718106]
[1739301775568,0.17469642,95230.0,95229.0,0.5718106]
[1739301775771,0.17469642,95230.0,95229.0,2.0718106]
[1739301776074,0.17469642,95230.0,95229.0,2.0728106]
[1739301777277,0.02,95230.0,95229.0,2.0728106]
[1739301777773,0.007,95230.0,95229.0,2.0728106]
[1739301778475,0.15469642,95243.0,95242.0,0.209982]
[1739301779673,0.15969642,95243.0,95242.0,0.210982]
[1739301780778,0.014,95243.0,95242.0,0.211982]
[1739301781879,0.009,95243.0,95242.0,0.210982]
[1739301782074,0.009,95243.0,95242.0,0.211982]
[1739301782579,0.15469642,95264.0,95244.0,0.0524941]
[1739301782779,0.15469642,95264.0,95263.0,0.5707358]
[1739301783182,0.15469642,95264.0,95256.0,0.07508]
[1739301783183,0.15469642,95264.0,95258.0,0.2099452]
[1739301783480,0.15469642,95264.0,95256.0,0.07508]
[1739301783883,0.15569642,95264.0,95263.0,0.3608]
[1739301784069,0.15569642,95264.0,95263.0,0.5707358]
[1739301785078,0.00015707,95271.0,95270.0,0.2099203]
[1739301785281,0.13720157,95292.0,95270.0,0.07504]
[1739301785479,0.3608,95313.0,95292.0,0.2098711]
[1739301785480,0.3098548,95300.0,95292.0,0.2098711]
[1739301785680,0.209859,95298.0,95292.0,1.7098711]
[1739301785876,0.1,95300.0,95292.0,1.5]
[1739301786081,0.1,95300.0,95290.0,0.20217245]
[1739301786082,0.2098741,95291.0,95290.0,0.20217245]
[1739301786276,0.2098741,95291.0,95290.0,0.07504]
[1739301786483,0.2098741,95291.0,95290.0,1.57504]
[1739301786681,0.3608,95295.0,95285.0,0.3608]
[1739301786880,0.2098851,95286.0,95285.0,0.3608]
[1739301787579,0.2098851,95286.0,95285.0,0.37114213]
[1739301787784,0.2098851,95286.0,95285.0,0.37214213]
[1739301788391,0.2098851,95286.0,95285.0,0.37114213]
[1739301788699,0.2098851,95286.0,95285.0,0.37214213]
[1739301789496,0.2098851,95286.0,95285.0,0.37314213]
[1739301790302,0.2098851,95286.0,95285.0,0.01234213]
[1739301790901,0.2098851,95286.0,95285.0,0.002]
[1739301796611,0.209916,95272.0,95261.0,0.3608]
[1739301796810,0.570716,95272.0,95269.0,0.01048004]
[1739301797010,0.3608,95272.0,95256.0,0.07504]
[1739301797212,0.5707491,95257.0,95256.0,0.07504]
[1739301797615,0.2099623,95251.0,95250.0,0.33709645]
[1739301797810,0.2099624,95251.0,95250.0,1.51074736]
[1739301798510,0.2099624,95251.0,95250.0,0.01074736]
[1739301798712,0.3608,95257.0,95247.0,0.00015746]
[1739301798914,0.2099667,95250.0,95247.0,1.62728991]
[1739301799117,0.2099667,95250.0,95247.0,1.50015746]
[1739301799310,0.2009667,95250.0,95247.0,1.50015746]
[1739301799512,0.1969667,95250.0,95247.0,1.50015746]
[1739301799711,0.209969,95248.0,95247.0,1.50015746]
[1739301800109,0.209969,95248.0,95247.0,1.53073117]
[1739301800716,0.209969,95248.0,95247.0,1.52573117]
[1739301800912,0.209969,95248.0,95247.0,1.51073117]
[1739301801112,0.209969,95248.0,95247.0,1.51373117]
[1739301802119,0.210969,95248.0,95247.0,1.51373117]
[1739301805621,0.210969,95248.0,95247.0,0.01373117]
[1739301805913,0.571769,95248.0,95247.0,0.01373117]
[1739301806816,0.571769,95248.0,95247.0,0.01073117]
[1739301807221,0.3618,95248.0,95209.0,0.0525134]
[1739301807424,0.2100086,95230.0,95229.0,0.07504]
[1739301807920,0.2100107,95229.0,95228.0,0.01072372]
[1739301808115,0.2100071,95231.0,95222.0,0.21160015]
[1739301808329,0.0684,95235.0,95223.0,0.07504]
[1739301808510,0.0684,95235.0,95228.0,0.014]
[1739301808711,0.2100107,95229.0,95228.0,0.014]
[1739301808913,0.2060107,95229.0,95228.0,0.014]
[1739301809319,0.210024,95223.0,95222.0,0.0272315]
[1739301809519,0.204024,95223.0,95222.0,0.0272315]
[1739301810124,0.190024,95223.0,95222.0,0.0122315]
[1739301811022,0.186024,95223.0,95222.0,0.0122315]
[1739301811722,0.187024,95223.0,95222.0,0.0162315]
[1739301812525,0.187024,95223.0,95222.0,0.0312315]
[1739301812526,0.188024,95223.0,95222.0,0.0312315]
[1739301822823,0.2100351,95218.0,95217.0,0.00015746]
[1739301824228,0.2120351,95218.0,95217.0,0.01077876]
[1739301824533,0.2120351,95218.0,95217.0,0.00015746]
[1739301825131,0.2130351,95218.0,95217.0,0.00015746]
[1739301825824,0.2150351,95218.0,95217.0,0.00015746]
[1739301830028,0.2150351,95218.0,95190.0,0.33722785]
[1739301830029,0.0525107,95215.0,95190.0,0.33722785]
[1739301830231,0.3608,95207.0,95199.0,0.01078029]
[1739301830433,0.2100832,95197.0,95194.0,1.5]
[1739301830729,0.2100859,95195.0,95194.0,1.5]
[1739301830933,0.2100859,95195.0,95193.0,0.26308917]
[1739301832138,0.2090859,95195.0,95193.0,0.26308917]
[1739301832535,0.2100859,95195.0,95193.0,0.26308917]
[1739301833042,0.2120859,95195.0,95193.0,0.26408917]
[1739301833843,0.2110859,95195.0,95193.0,0.27754468]
[1739301834134,0.2120859,95195.0,95193.0,0.27754468]
[1739301835840,0.2120859,95195.0,95193.0,0.01445551]
[1739301836947,0.2120859,95195.0,95194.0,1.5]
[1739301839241,0.210088,95194.0,95193.0,0.01345551]
[1739301839441,0.210088,95194.0,95191.0,0.54968917]
[1739301839642,0.003,95195.0,95191.0,0.56198915]
[1739301839951,0.003,95195.0,95193.0,0.18804917]
[1739301840545,0.001,95194.0,95193.0,0.18804917]
[1739301840746,0.0653,95194.0,95193.0,0.18804917]
[1739301841141,0.0643,95194.0,95193.0,0.18804917]
[1739301841343,0.002,95194.0,95193.0,0.18804917]
[1739301841743,0.003,95194.0,95193.0,0.18804917]
[1739301842438,0.0643,95219.0,95203.0,0.2100681]
[1739301842750,0.2100265,95222.0,95212.0,0.3608]
[1739301842936,0.2100265,95222.0,95213.0,0.1337]
[1739301843640,0.00015755,95227.0,95213.0,0.1337]
[1739301843842,0.2100423,95215.0,95213.0,0.0666]
[1739301844048,0.2100527,95210.0,95208.0,0.00015755]
[1739301844250,0.3608,95209.0,95208.0,0.00015755]
[1739301844458,0.0637,95209.0,95208.0,0.00015755]
[1739301844648,0.001,95219.0,95208.0,0.37397356]
[1739301844854,0.2100073,95231.0,95220.0,0.2100292]
[1739301845042,0.2100073,95231.0,95222.0,0.2100263]
[1739301845352,0.2100073,95231.0,95226.0,0.3608]
[1739301845653,0.2100245,95223.0,95221.0,0.1339]
[1739301846049,0.2100245,95223.0,95221.0,0.14719241]
[1739301846953,0.2100245,95223.0,95221.0,0.01329241]
[1739301847153,0.003,95227.0,95218.0,0.07504]
[1739301847361,0.2100298,95221.0,95218.0,0.07504]
[1739301847648,0.3608,95219.0,95209.0,1.50084]
[1739301847853,0.3608,95210.0,95209.0,0.0142127]
[1739301848052,0.3608,95210.0,95209.0,0.0133727]
[1739301848345,0.210055,95209.0,95208.0,0.07519755]
[1739301848742,0.208055,95209.0,95208.0,0.00015755]
[1739301849654,0.209055,95209.0,95208.0,0.00315755]
[1739301864148,0.3608,95229.0,95208.0,0.36395755]
[1739301864453,0.2100308,95220.0,95219.0,0.12713245]
[1739301864652,0.2100396,95216.0,95215.0,0.2100416]
[1739301864956,0.2100506,95211.0,95210.0,0.33718515]
[1739301865154,0.2100506,95211.0,95210.0,0.2100527]
[1739301865859,0.3608,95212.0,95208.0,0.00399755]
[1739301865860,0.210055,95209.0,95208.0,0.00399755]
[1739301866060,0.210055,95209.0,95208.0,0.00315755]
[1739301866358,0.3608,95221.0,95208.0,0.00215755]
[1739301866554,0.2100422,95215.0,95211.0,0.12713245]
[1739301866755,0.3608,95221.0,95208.0,0.00215755]
[1739301867063,0.2100363,95218.0,95212.0,0.2100484]
[1739301867254,0.210041,95216.0,95212.0,0.2100484]
[1739301867761,0.2100428,95215.0,95211.0,0.12713245]
[1739301868059,0.2100428,95215.0,95208.0,0.19082544]
[1739301868562,0.2100428,95215.0,95209.0,0.2100543]
[1739301868754,0.36236001,95221.0,95208.0,0.19082544]
[1739301868949,0.2100311,95220.0,95211.0,0.33718215]
[1739301869158,0.36236001,95221.0,95211.0,0.33718215]
[1739301869360,0.2100366,95218.0,95211.0,0.33718215]
[1739301869656,0.2100366,95218.0,95212.0,0.001]
[1739301870161,0.36140001,95221.0,95212.0,0.001]
[1739301870362,0.2100315,95220.0,95211.0,0.33818095]
[1739301870560,0.3608,95221.0,95211.0,0.12813245]
[1739301871059,0.2100409,95216.0,95211.0,0.12713245]
[1739301871256,0.2100409,95216.0,95212.0,0.001]
[1739301871454,0.3608,95221.0,95212.0,0.001]
[1739301871652,0.2100455,95214.0,95212.0,0.001]
[1739301872652,0.2090526,95210.0,95209.0,0.075]
[1739301873352,0.3608,95221.0,95209.0,0.075]
[1739301873559,0.210032,95220.0,95213.0,0.3608]
[1739301873959,0.2100364,95218.0,95213.0,0.3608]
[1739301874155,0.2100432,95215.0,95212.0,0.001]
[1739301874357,0.001,95210.0,95209.0,0.00184]
[1739301874555,0.3618,95210.0,95209.0,0.076]
[1739301874757,0.5718527,95210.0,95209.0,0.076]
[1739301875266,0.5718527,95210.0,95209.0,0.001]
[1739301875760,0.5718527,95210.0,95208.0,0.00015755]
[1739301875761,0.5708527,95210.0,95208.0,0.00015755]
[1739301876664,0.5718527,95210.0,95208.0,0.00015755]
[1739301877357,0.5708527,95210.0,95208.0,0.00015755]
[1739301877554,0.5718527,95210.0,95208.0,0.00015755]
[1739301883267,0.2100549,95209.0,95208.0,0.00015755]
[1739301884460,0.36236001,95210.0,95194.0,0.18866789]
[1739301884657,0.2100858,95195.0,95194.0,0.18866789]
[1739301885467,0.2090858,95195.0,95194.0,0.18866789]
[1739301885970,0.2100924,95192.0,95191.0,0.01333016]
[1739301886165,0.3608,95197.0,95188.0,0.0015756]
[1739301886470,0.2110858,95195.0,95194.0,0.001]
[1739301887071,0.209099,95189.0,95188.0,0.0015756]
[1739301887273,0.569899,95189.0,95188.0,0.0150588]
[1739301887458,0.569899,95189.0,95188.0,0.0015756]
[1739301889673,0.570899,95189.0,95188.0,0.0015756]
[1739301892472,0.2100991,95189.0,95188.0,0.0015756]
[1739301893074,0.2100703,95202.0,95188.0,0.0015756]
[1739301893275,0.2100703,95202.0,95196.0,0.3608]
[1739301893660,0.00143655,95199.0,95196.0,0.3608]
[1739301894570,0.00143655,95198.0,95196.0,0.3608]
[1739301895673,0.00143655,95197.0,95196.0,0.3608]
[1739301896274,0.00143655,95197.0,95196.0,0.3618]
[1739301896875,0.00143655,95197.0,95196.0,0.3608]
[1739301897178,0.00243655,95197.0,95196.0,0.3618]
[1739301899377,0.00243655,95197.0,95196.0,0.3608]
[1739301900174,0.00243655,95197.0,95196.0,0.5709007]
[1739301900675,0.21253505,95197.0,95196.0,0.5709007]
[1739301901866,0.00243655,95197.0,95196.0,0.2101007]
[1739301903573,0.0038729,95197.0,95196.0,0.2101007]
[1739301905381,0.0038729,95197.0,95196.0,0.22273368]
[1739301909065,0.0038729,95197.0,95196.0,0.01263298]
[1739301909372,0.0038729,95197.0,95193.0,0.18866789]
[1739301909677,0.00430925,95195.0,95192.0,0.61153223]
[1739301910679,0.00430925,95194.0,95192.0,0.61153223]
[1739301911281,0.21441155,95194.0,95192.0,0.61153223]
[1739301911476,0.21441155,95194.0,95192.0,0.62401276]
[1739301911675,0.00430925,95193.0,95192.0,0.62401276]
[1739301912078,0.00430925,95193.0,95192.0,0.37328053]
[1739301912382,0.21441365,95193.0,95192.0,0.3608]
[1739301912578,0.27621365,95201.0,95192.0,0.3608]
[1739301912782,0.2111044,95193.0,95192.0,0.3608]
[1739301914075,0.2101071,95192.0,95191.0,0.18892229]
[1739301914277,0.2101204,95186.0,95184.0,0.25073223]
[1739301915180,0.2091204,95186.0,95184.0,0.25073223]
[1739301915788,0.2101204,95186.0,95184.0,0.25073223]
[1739301915991,0.2111204,95186.0,95184.0,0.25073223]
[1739301917088,0.2111204,95186.0,95176.0,0.01283457]
[1739301917280,0.2111204,95186.0,95176.0,0.22297697]
[1739301917789,0.002,95186.0,95174.0,0.3608]
[1739301917980,0.2101447,95175.0,95174.0,0.3608]
[1739301918592,0.21158128,95175.0,95174.0,0.3608]
[1739301919783,0.21158128,95175.0,95165.0,0.00015755]
[1739301919784,0.36323658,95175.0,95165.0,0.00015755]
[1739301919974,0.2101854,95159.0,95150.0,0.1]
[1739301920378,0.21162198,95159.0,95150.0,0.1]
[1739301921388,0.2102032,95151.0,95150.0,0.1]
[1739301921783,0.5710032,95151.0,95150.0,0.1]
[1739301921987,0.3608,95151.0,95149.0,1e-08]
[1739301922287,0.3608,95151.0,95134.0,0.0644]
[1739301922591,0.2102385,95135.0,95134.0,0.0644]
[1739301922787,0.210243,95133.0,95132.0,0.2741448]
[1739301923287,0.210243,95133.0,95132.0,0.0639]
[1739301923487,0.21167958,95133.0,95132.0,0.0639]
[1739301923689,0.21311692,95133.0,95132.0,0.0639]
[1739301923891,0.2102628,95124.0,95123.0,0.00015763]
[1739301924275,0.00287392,95133.0,95123.0,0.00015763]
[1739301924480,0.00303155,95133.0,95123.0,0.21042113]
[1739301924686,0.00303155,95133.0,95120.0,0.12713245]
[1739301924687,0.00287392,95128.0,95120.0,0.12713245]
[1739301924884,0.00287392,95128.0,95121.0,0.37372579]
[1739301925084,0.001,95124.0,95121.0,0.37372579]
[1739301925484,0.00287392,95128.0,95121.0,0.37372579]
[1739301925685,0.00287392,95125.0,95121.0,0.37372579]
[1739301926790,0.00287392,95123.0,95121.0,0.37372579]
[1739301926992,0.21314062,95123.0,95121.0,0.37372579]
[1739301927793,0.00287392,95122.0,95121.0,0.3608]
[1739301928696,0.00107097,95122.0,95121.0,0.3608]
[1739301932203,0.06867097,95122.0,95121.0,0.3608]
[1739301932405,0.2102694,95121.0,95115.0,0.06365763]
[1739301932603,0.2102805,95116.0,95115.0,0.00015763]
[1739301932911,0.21135147,95116.0,95115.0,0.00015763]
[1739301933907,0.21135147,95116.0,95115.0,0.36095763]
[1739301934113,0.22414214,95116.0,95115.0,0.36095763]
[1739301934414,0.00107097,95116.0,95115.0,0.36095763]
[1739301934609,0.3608,95165.0,95115.0,0.36095763]
[1739301934805,0.3608,95165.0,95141.0,0.2102234]
[1739301935009,0.210181,95162.0,95156.0,0.3608]
[1739301935208,0.12713245,95170.0,95156.0,0.3608]
[1739301935209,0.16692414,95164.0,95156.0,0.3608]
[1739301935414,0.2102098,95148.0,95147.0,0.3608]
[1739301936906,0.00015763,95157.0,95144.0,0.3608]
[1739301937115,0.2102164,95145.0,95144.0,0.3608]
[1739301937612,0.2102208,95143.0,95142.0,0.3608]
[1739301938616,0.2102297,95139.0,95138.0,0.00015763]
[1739301940314,0.2162297,95139.0,95138.0,0.00015763]
[1739301940707,0.2282297,95139.0,95138.0,0.00015763]
[1739301944608,0.24066369,95139.0,95138.0,0.00015763]
[1739301945213,0.2282297,95139.0,95138.0,0.00015763]
[1739301945620,0.018,95139.0,95138.0,0.00015763]
[1739301946019,0.2282294,95139.0,95138.0,0.00015763]
[1739301952725,0.2292294,95139.0,95138.0,0.00015763]
[1739301953811,0.2312294,95139.0,95138.0,0.00015763]
[1739301954219,0.2242294,95139.0,95138.0,0.00015763]
[1739301954418,0.2172294,95139.0,95138.0,0.00015763]
[1739301954618,0.2312294,95139.0,95138.0,0.00015763]
[1739301959727,0.2172294,95139.0,95138.0,0.00015763]
[1739301960030,0.021,95139.0,95138.0,0.21038943]
[1739301960433,0.01249976,95148.0,95147.0,0.2102119]
[1739301960630,0.2101942,95155.0,95146.0,0.3608]
[1739301960818,0.2102096,95149.0,95147.0,0.1306]
[1739301961321,0.2102096,95149.0,95147.0,0.065]
[1739301962927,0.2252096,95149.0,95147.0,0.066]
[1739301963237,0.2322096,95149.0,95147.0,0.066]
[1739301963827,0.2172096,95149.0,95147.0,0.065]
[1739301964157,0.2282096,95149.0,95147.0,0.066]
[1739301964636,0.2102097,95148.0,95147.0,0.066]
[1739301964835,0.3647975,95148.0,95147.0,0.066]
[1739301965735,0.3647975,95148.0,95147.0,0.065]
[1739301965941,0.3647975,95148.0,95147.0,0.066]
[1739301966438,0.3717975,95148.0,95147.0,0.066]
[1739301966630,0.3867975,95148.0,95147.0,0.066]
[1739301967831,0.3867975,95148.0,95147.0,0.001]
[1739301967832,0.3797975,95148.0,95147.0,0.001]
[1739301968037,0.3867975,95148.0,95147.0,0.001]
[1739301968341,0.2322097,95148.0,95147.0,0.001]
[1739301968730,0.2392097,95148.0,95147.0,0.001]
[1739301969139,0.014,95148.0,95141.0,0.3608]
[1739301969327,0.2322096,95148.0,95147.0,0.001]
[1739301970038,0.2102229,95142.0,95141.0,0.3608]
[1739301971835,0.2172229,95142.0,95141.0,0.3608]
[1739301972336,0.2322229,95142.0,95141.0,0.3618]
[1739301973231,0.2322229,95142.0,95141.0,0.001]
[1739301973929,0.210229,95140.0,95138.0,0.00015763]
[1739301974736,0.022,95142.0,95138.0,0.00015763]
[1739301974936,0.015,95142.0,95138.0,0.00015763]
[1739301975237,0.2102295,95139.0,95138.0,0.00015763]
[1739301975933,0.2102295,95139.0,95138.0,0.00115763]
[1739301976431,0.2102295,95139.0,95138.0,0.00015763]
[1739301976633,0.2252295,95139.0,95138.0,0.00115763]
[1739301977532,0.2102295,95139.0,95138.0,0.00115763]
[1739301977738,0.2252295,95139.0,95138.0,0.00115763]
[1739301978344,0.2322295,95139.0,95138.0,0.00115763]
[1739301978734,0.015,95139.0,95138.0,0.00115763]
[1739301979044,0.007,95139.0,95138.0,0.00115763]
[1739301979231,0.022,95139.0,95138.0,0.00115763]
[1739301979643,0.03436078,95139.0,95138.0,0.00115763]
[1739301979832,0.02736078,95139.0,95138.0,0.00115763]
[1739301980032,0.03436078,95139.0,95138.0,0.00115763]
[1739301980231,0.01936078,95139.0,95138.0,0.00015763]
[1739301980438,0.03436078,95139.0,95138.0,0.00115763]
[1739301980935,0.15514781,95146.0,95145.0,0.2102164]
[1739301981136,0.1545878,95146.0,95145.0,0.2102164]
[1739301981336,0.2101862,95159.0,95143.0,0.3608]
[1739301981337,0.1545878,95151.0,95143.0,0.3608]
[1739301981536,0.1545878,95151.0,95150.0,0.5710053]
[1739301982647,0.1615878,95151.0,95150.0,0.5710053]
[1739301982840,0.1615878,95151.0,95150.0,0.5720053]
[1739301982841,0.0745878,95151.0,95150.0,0.5720053]
[1739301983047,0.1857086,95163.0,95156.0,0.2101921]
[1739301983243,0.01245859,95161.0,95156.0,0.2101921]
[1739301984545,0.01245859,95161.0,95156.0,0.2111921]
[1739301985343,0.01245859,95161.0,95156.0,0.2121921]
[1739301985743,0.3608,95174.0,95156.0,0.2121921]
[1739301985938,0.2101534,95174.0,95156.0,0.3628]
[1739301986248,0.19353245,95180.0,95164.0,0.2101742]
[1739301986543,0.2101573,95172.0,95166.0,0.3608]
[1739301987336,0.22264757,95179.0,95173.0,0.2101531]
[1739301987845,0.2101457,95177.0,95173.0,0.2101531]
[1739301988238,0.01250457,95179.0,95167.0,0.0674]
[1739301988746,0.01250457,95179.0,95160.0,0.12713245]
[1739301988747,0.3608,95173.0,95160.0,0.12713245]
[1739301988935,0.3608,95173.0,95167.0,0.2101667]
[1739301989847,0.3608,95173.0,95167.0,0.2111667]
[1739301990239,0.5709548,95173.0,95167.0,0.2111667]
[1739301990643,0.5709548,95173.0,95167.0,0.2121667]
[1739301991345,0.5719548,95173.0,95167.0,0.2121667]
[1739301993052,0.5719548,95173.0,95168.0,0.2101646]
[1739301994156,0.2101571,95172.0,95168.0,0.2101646]
[1739301994352,0.2101571,95172.0,95168.0,0.2111646]
[1739301994753,0.36240001,95173.0,95168.0,0.001]
[1739301994954,0.2101629,95170.0,95168.0,0.001]
[1739301995557,0.2101629,95170.0,95168.0,0.002]
[1739301995754,0.0675,95169.0,95168.0,0.002]
[1739301996062,0.0675,95169.0,95168.0,0.001]
[1739301996247,0.0675,95169.0,95168.0,0.002]
[1739301997152,0.0675,95169.0,95160.0,0.00015763]
[1739301997153,0.210181,95161.0,95160.0,0.00015763]
[1739301998656,0.211181,95161.0,95160.0,0.00215763]
[1739302001251,0.001,95161.0,95137.0,0.3608]
[1739302001457,0.3608,95144.0,95140.0,0.2102268]
[1739302002764,0.3608,95144.0,95137.0,0.3608]
[1739302002965,0.4254,95144.0,95137.0,0.3608]
[1739302003154,0.2102208,95143.0,95137.0,0.3608]
[1739302003859,0.42896001,95144.0,95137.0,0.3608]
[1739302003860,0.2102238,95142.0,95137.0,0.5710325]
[1739302004053,0.3608,95142.0,95136.0,0.01222251]
[1739302004363,0.3608,95142.0,95132.0,0.00015763]
[1739302005355,0.3638,95142.0,95137.0,0.2102336]
[1739302006259,0.2102346,95137.0,95132.0,0.01222493]
[1739302006562,0.2102346,95137.0,95132.0,0.00015763]
[1739302006965,0.2102346,95137.0,95132.0,0.21040233]
[1739302007466,0.2122346,95137.0,95132.0,0.21040233]
[1739302008265,0.2102391,95135.0,95132.0,0.00015763]
[1739302008461,0.3608,95134.0,95132.0,0.00015763]
[1739302010167,0.3608,95134.0,95132.0,0.01231094]
[1739302010667,0.3638,95134.0,95132.0,0.01231094]
[1739302012360,0.574042,95134.0,95132.0,0.01231094]
[1739302012966,0.3638,95134.0,95132.0,0.01231094]
[1739302013163,0.3608,95134.0,95132.0,0.01231094]
[1739302013361,0.3638,95134.0,95132.0,0.01231094]
[1739302013764,0.3608,95134.0,95132.0,0.01231094]
[1739302013960,0.3628,95134.0,95132.0,0.01231094]
[1739302014668,0.3628,95134.0,95132.0,0.00015763]
[1739302015066,0.37480515,95134.0,95132.0,0.00015763]
[1739302015569,0.2102429,95133.0,95132.0,0.00015763]
[1739302016874,0.2132429,95133.0,95132.0,0.00015763]
[1739302020676,0.003,95133.0,95132.0,0.00015763]
[1739302020971,0.003,95133.0,95132.0,0.21040273]
[1739302022665,0.003,95133.0,95132.0,0.21140273]
[1739302023467,0.002,95133.0,95132.0,0.00115763]
[1739302023663,0.002,95133.0,95132.0,0.21140273]
[1739302024072,0.003,95133.0,95132.0,1.50115763]
[1739302024479,0.01225907,95152.0,95132.0,1.50015763]
[1739302024677,0.00015763,95152.0,95140.0,0.12713245]
[1739302024970,0.12713245,95150.0,95137.0,0.3608]
[1739302025177,0.2102145,95146.0,95142.0,0.2102218]
[1739302025370,0.2102145,95146.0,95137.0,0.3608]
[1739302025576,0.00015763,95152.0,95148.0,0.210209]
[1739302027177,0.2102051,95151.0,95142.0,0.2102215]
[1739302027474,0.2102212,95143.0,95138.0,0.2102303]
[1739302028267,0.2102212,95143.0,95140.0,0.2102271]
[1739302028971,0.3608,95147.0,95137.0,0.004]
[1739302028972,0.2102318,95138.0,95137.0,0.004]
[1739302029483,0.2102363,95136.0,95132.0,0.00015763]
[1739302029683,0.3608,95133.0,95132.0,0.00015763]
[1739302029977,0.3588,95133.0,95132.0,0.00015763]
[1739302032681,0.3608,95133.0,95132.0,0.00015763]
[1739302033676,0.3728454,95133.0,95132.0,0.00015763]
[1739302035181,0.5830883,95133.0,95132.0,0.00015763]
[1739302035780,0.5710429,95133.0,95132.0,0.00015763]
[1739302035971,0.3608,95133.0,95132.0,0.21040273]
[1739302036173,0.3608,95133.0,95132.0,0.00015763]
[1739302036374,0.5710429,95133.0,95132.0,0.00015763]
[1739302042689,0.002,95133.0,95132.0,0.21040273]
[1739302045784,0.36136001,95135.0,95134.0,0.2102407]
[1739302045785,0.00056001,95135.0,95134.0,0.2102407]
[1739302045992,0.3608,95147.0,95133.0,0.0782]
[1739302046190,0.3608,95147.0,95146.0,0.2102142]
[1739302047184,0.3628,95147.0,95146.0,0.2102142]
[1739302047392,0.002,95147.0,95146.0,0.2102142]
[1739302048896,0.3608,95156.0,95149.0,0.2102059]
[1739302049094,0.0120568,95153.0,95149.0,0.2102059]
[1739302050200,0.0120568,95153.0,95149.0,0.2122059]
[1739302051289,0.0120568,95153.0,95149.0,0.002]
[1739302051491,0.0120568,95153.0,95150.0,0.2102044]
[1739302052700,0.0120568,95153.0,95150.0,0.2122044]
[1739302053099,0.36095763,95152.0,95150.0,0.2122044]
[1739302053987,0.2102031,95151.0,95150.0,0.002]
[1739302054995,0.2102031,95151.0,95150.0,0.001]
[1739302055196,0.2102031,95151.0,95150.0,0.002]
[1739302058201,0.0839,95151.0,95132.0,0.00015763]
[1739302058395,0.3608,95133.0,95132.0,0.21040273]
[1739302058793,0.210226,95141.0,95137.0,0.2102336]
[1739302060002,0.3608,95138.0,95137.0,0.2102336]
[1739302060802,0.3608,95138.0,95134.0,0.2102405]
[1739302061195,0.3608,95138.0,95132.0,0.00115763]
[1739302061391,0.2102429,95133.0,95132.0,0.00115763]
[1739302061598,0.3608,95134.0,95118.0,0.18900059]
[1739302061909,0.2102435,95133.0,95120.0,0.12713245]
[1739302062196,0.3608,95134.0,95120.0,0.12713245]
[1739302063396,0.3608,95134.0,95120.0,0.13013245]
[1739302064396,0.3618,95134.0,95120.0,0.13013245]
[1739302066207,0.3618,95134.0,95120.0,0.003]
[1739302066904,0.3608,95126.0,95120.0,0.003]
[1739302067101,0.0845,95125.0,95120.0,0.003]